Cogmind - Beta 9.4 @@@ ROGUE MODE // 2020.02.03 @ 20:57:02 Player: alice_fexa Result: Destroyed by HR-OEZ(M) with Barrage Gun Performance ------------- Evolutions (3) 1500 Regions Visited (7) 1400 Robots Destroyed (81) 405 Value Destroyed (1953) 1953 Prototype IDs (12) 240 Alien Tech Used (0) 0 Bonus (103) 103 TOTAL SCORE: 5601 Bonus ------- High Alert Combat Kills 35 Met Imprinter 300 Friendly Fire -232 Cogmind --------- Core Integrity 0/700 Matter 240/300 Energy 95/100 System Corruption 18% Temperature Cool (0) Movement Flying (165) Ox2 Location -7/Zion Parts ------- > --- POWER (2) -------- (None) > --- PROPULSION (4) --- Improved Cesium-ion Thruster > --- UTILITY (5) ------ Large Storage Unit Advanced Melee Analysis Suite > --- WEAPON (2) ------- Makeshift Sword > --- INVENTORY (10) --- Improved Heat Sink Advanced Sensor Array Microactuators Hardened Medium Armor Plating Experimental System Shield Lightning Gun EM Pulse Cannon Proton Missile Launcher Proton Missile Launcher Heavy Missile Launcher Peak State ------------ > --- POWER ------------ Micro Nuclear Core Light Fission Core > --- PROPULSION ------- Airjet Improved Airjet Gravmag Array > --- UTILITY ---------- Medium Storage Unit Large Storage Unit Improved Signal Interpreter Advanced Melee Analysis Suite Improved Maneuvering Thrusters > --- WEAPON ----------- Katana Katana > --- INVENTORY -------- Micro Nuclear Core Cesium-ion Thruster Improved Cesium-ion Thruster Improved Heat Sink Advanced Sensor Array Microactuators Hardened Medium Armor Plating Lightning Gun EM Pulse Cannon Enhanced Autogun Proton Missile Launcher Proton Missile Launcher Proton Missile Launcher Heavy Missile Launcher [Rating: 52] Favorites ----------- Power Micro Nuclear Core Engine Cooled Ion Engine Power Core Micro Nuclear Core Propulsion Light Treads Treads Light Treads Wheel Compact Wheel Hover Unit Airjet Flight Unit Improved Cesium-ion Thruster Utility Large Storage Unit Device Advanced Sensor Array Storage Large Storage Unit Processor Improved Signal Interpreter Protection Light Armor Plating Weapon Katana Energy Gun Improved EM Shotgun Ballistic Gun Improved Assault Rifle Ballistic Cannon Light Cannon Launcher Proton Missile Launcher Slashing Weapon Katana Build | -11 -10 -9 -8 -7 -7 -7 -7 ------- Run | Scr Mat Mat Mat Fac Low Low Zio Slots Evolved 6 | . . 2 2 2 . . . Power 1 | . . . . 1 . . . Propulsion 2 | . . 1 . 1 . . . Utility 3 | . . 1 2 . . . . Weapon . | . . . . . . . . Parts Attached 113 | 7 7 12 33 29 5 . 20 Power 13 | 1 2 . 1 6 1 . 2 Engine 5 | 1 2 . . 1 . . 1 Core 8 | . . . 1 5 1 . 1 Reactor . | . . . . . . . . Propulsion 36 | 3 . 7 11 11 . . 4 Treads 19 | 2 . 7 10 . . . . Leg . | . . . . . . . . Wheel 1 | 1 . . . . . . . Hover 13 | . . . 1 10 . . 2 Flight 3 | . . . . 1 . . 2 Utility 33 | 1 3 1 11 9 4 . 4 Device 15 | . . . 6 4 3 . 2 Storage 7 | 1 2 . . 4 . . . Processor 3 | . . 1 1 . . . 1 Hackware . | . . . . . . . . Protection 8 | . 1 . 4 1 1 . 1 Artifact . | . . . . . . . . Weapon 31 | 2 2 4 10 3 . . 10 Energy Gun 7 | 2 1 1 3 . . . . Energy Cannon . | . . . . . . . . Ballistic Gun 6 | . . 2 3 1 . . . Ballistic Cannon 1 | . 1 . . . . . . Launcher 9 | . . 1 3 . . . 5 Special Weapon . | . . . . . . . . Impact Weapon . | . . . . . . . . Slashing Weapon 8 | . . . 1 2 . . 5 Piercing Weapon . | . . . . . . . . Special Melee Weapon . | . . . . . . . . Unidentified Prototypes 6 | . 1 1 2 2 . . . Parts Lost 13 | . . . 1 . . . 12 Power 3 | . . . . . . . 3 Propulsion 6 | . . . 1 . . . 5 Utility 2 | . . . . . . . 2 Weapon 2 | . . . . . . . 2 Highest Loss Streak 12 | . . . 1 . . . 12 Average Slot Usage (%) 96 | . 95 97 99 97 92 92 83 Engine 4 | . 14 11 2 . . . . Core 7 | . . . 6 14 15 15 11 Treads 16 | . 28 31 26 . . . . Hover 10 | . . . . 28 23 23 20 Device 9 | . . . 10 20 14 15 2 Storage 15 | . 19 22 18 7 15 15 14 Processor 8 | . . 10 9 7 7 7 13 Protection 4 | . 4 . 7 1 . . 4 Energy Gun 6 | . 22 5 8 . . . . Ballistic Gun 4 | . . 11 7 3 . . . Ballistic Cannon 1 | . 5 4 . . . . . Slashing Weapon 5 | . . . 1 10 15 15 11 Naked Turns . | . . . . . . . . Heaviest Build 59 | 13 45 46 52 45 49 44 59 Greatest Support 66 | 40 40 66 66 60 50 50 50 Greatest Overweight (x) 7 | . 1 1 1 1 . . 7 Average Overweight (x) . | . . . . . . . . Largest Inventory Capacity 16 | 6 16 16 16 16 14 14 14 Average Capacity 13 | 5 10 16 16 10 14 14 13 Most Carried 16 | 4 16 16 16 16 14 14 14 Average Carried 13 | 2 9 15 15 10 14 14 13 Final Capacity 16 | 6 16 16 16 14 14 14 10 Final Carried 16 | 4 16 16 16 14 14 14 10 Class Distribution -------------------- 93% | Mutant 6% | Scavenger-Mutant Dominant Class ---------------- Mutant | -10/Materials Mutant | -9/Materials Mutant | -8/Materials Mutant | -7/Factory Mutant | -7/Lower Caves Mutant | -7/Lower Caves Mutant | -7/Zion Resources | -11 -10 -9 -8 -7 -7 -7 -7 ----------- Run | Scr Mat Mat Mat Fac Low Low Zio Matter Collected 1830 | 173 145 294 672 311 60 . 175 Remotely . | . . . . . . . . Salvage Created 3260 | . 224 454 1459 382 198 . 543 Parts 201 | . 15 34 94 19 2 . 37 Haulers Intercepted 10 | . 1 1 5 3 . . . Recyclers Shooed 5 | . 3 . 2 . . . . Parts Field Recycled . | . . . . . . . . Retrieved Matter . | . . . . . . . . Parts Self-Destructed 1 | . . . . . 1 . . Prevented . | . . . . . . . . Kills | -11 -10 -9 -8 -7 -7 -7 -7 ------- Run | Scr Mat Mat Mat Fac Low Low Zio Combat Hostiles Destroyed 46 | . 3 11 27 . . . 5 Melee 1 | . . . . . . . 1 Guns 27 | . 3 5 19 . . . . Cannons 2 | . . 2 . . . . . AOE 12 | . . 4 8 . . . . Classes Destroyed 12 | . 3 5 1 1 . . 2 Worker 1 | . . 1 . . . . . Hauler 10 | . 1 1 5 3 . . . Recycler 2 | . . . . 2 . . . Operator 2 | . . 1 1 . . . . Watcher 11 | . 2 1 5 3 . . . Swarmer 15 | . . 4 11 . . . . Grunt 17 | . 3 4 10 . . . . Brawler 1 | . . 1 . . . . . Duelist 1 | . . . 1 . . . . Sentry 7 | . . 2 5 . . . . Zionite 9 | . . . . . . . 9 Mutant 4 | . . . . . . . 4 Best Kill Streak 5 | . 2 5 4 2 . . 4 Combat Bots Only 4 | . 2 4 4 . . . 4 Max Kills in Single Turn 3 | . 1 3 3 1 . . 2 Gunslinging . | . . . . . . . . Exploded 3 | . . 2 3 . . . . Melee 1 | . . . . . . . 1 Uniques/NPCs Destroyed 1 | . . . . . . . 1 Imprinter (-7/Zion) Combat | -11 -10 -9 -8 -7 -7 -7 -7 -------- Run | Scr Mat Mat Mat Fac Low Low Zio Damage Taken 3549 | . 149 188 1227 84 103 . 1798 Core 952 | . 62 21 156 27 14 . 672 Absorbed by Shields . | . . . . . . . . Core Remaining (%) 85 | 100 75 94 71 . . . . Volleys Fired 158 | . 31 25 83 2 . . 17 Largest 2 | . 2 2 2 1 . . 2 Hottest 100 | . 100 85 70 25 . . 78 Shots Fired 291 | . 62 48 160 2 . . 19 Gun 251 | . 56 38 155 2 . . . Cannon 14 | . 6 8 . . . . . Launcher 26 | . . 2 5 . . . 19 Special . | . . . . . . . . Kinetic 123 | . 6 37 78 2 . . . Thermal 64 | . 56 8 . . . . . Explosive 7 | . . 2 5 . . . . Electromagnetic 97 | . . 1 77 . . . 19 Robot Hit Streak 24 | . 14 23 24 1 . . 5 Robot Miss Streak 5 | . 2 3 5 1 . . 1 Penetration Max . | . . . . . . . . Secondary Targets 4 | . . . 4 . . . . Max Gunslinging Chain 1 | . . . 1 . . . . Shots Hit Robots 252 | . 45 34 127 13 7 . 26 Core Hits 146 | . 14 21 77 9 4 . 21 Critical Hits 1 | . . . . . 1 . . Critical Kills . | . . . . . . . . Critical Parts Destroyed 1 | . . . . . 1 . . Melee Attacks 73 | . . . 3 46 9 . 15 Impact . | . . . . . . . . Slashing 73 | . . . 3 46 9 . 15 Piercing . | . . . . . . . . Sneak Attacks 10 | . . . . 10 . . . Combat Hostiles . | . . . . . . . . Follow-up Attacks 5 | . . . . 1 2 . 2 Damage Inflicted 6632 | . 522 738 2363 1060 699 . 1250 Guns 2815 | . 453 422 1900 40 . . . Cannons 138 | . 69 69 . . . . . Explosions 1522 | . . 247 463 . . . 812 Melee 2157 | . . . . 1020 699 . 438 Ramming . | . . . . . . . . Kinetic 1239 | . 69 397 733 40 . . . Thermal 515 | . 453 62 . . . . . Explosive 710 | . . 247 463 . . . . Electromagnetic 2011 | . . 32 1167 . . . 812 Impact . | . . . . . . . . Slashing 2157 | . . . . 1020 699 . 438 Piercing . | . . . . . . . . Highest Corruption 18 | . . . 3 1 1 1 18 Average Corruption 2 | . . . 3 1 1 1 5 Corruption Purged . | . . . . . . . . Effects 36 | . . . 27 . . . 9 Message Errors 8 | . . . 7 . . . 1 Matter Fused 9 | . . . 9 . . . . Heat Flow Errors 5 | . . . 4 . . . 1 Energy Discharges 5 | . . . 3 . . . 2 Parts Rejected 1 | . . . . . . . 1 Data Loss (minor) 2 | . . . 2 . . . . Targeting Errors 6 | . . . 2 . . . 4 Overload Shots . | . . . . . . . . Overflow Damage 288 | . . . 9 136 131 . 12 Projectiles . | . . . . . . . . Explosions 16 | . . . 9 . . . 7 Melee 272 | . . . . 136 131 . 5 Knockbacks . | . . . . . . . . Impact . | . . . . . . . . Kinetic . | . . . . . . . . Secondary . | . . . . . . . . Self-Inflicted Damage 171 | . . . 132 . . . 39 Shots 4 | . . . 2 . . . 2 Rammed . | . . . . . . . . Targets Rammed . | . . . . . . . . Kicked . | . . . . . . . . Crushed . | . . . . . . . . Highest Temperature 257 | . 257 42 250 9 27 . 141 Average Temperature 59 | . 74 16 41 9 15 . 61 Received Heat Transfer 699 | . 87 81 477 . 54 . . Siege Activations . | . . . . . . . . Robots Corrupted 4 | . . . . . . . 4 Combat Hostiles 4 | . . . . . . . 4 Parts Fried 10 | . . . 2 . . . 8 Impact Corruptions . | . . . . . . . . Robots Melted . | . . . . . . . . Combat Hostiles . | . . . . . . . . Parts Melted 5 | . 5 . . . . . . Heat Transferred 1446 | . 1261 185 . . . . . Parts Sabotaged . | . . . . . . . . Parts Stolen . | . . . . . . . . Parts Stripped . | . . . . . . . . Power Chain Reactions . | . . . . . . . . Missiles Intercepted . | . . . . . . . . Alert | -11 -10 -9 -8 -7 -7 -7 -7 ------- Run | Scr Mat Mat Mat Fac Low Low Zio Peak Influence 528 | . 131 272 528 234 . . . Average Influence 131 | . 46 100 191 108 . . . Maximum Alert Level 2 | . . 1 2 1 . . . Low Security (%) 73 | 100 100 77 66 66 . . . Level 1 16 | . . 22 8 33 . . . Level 2 10 | . . . 24 . . . . Level 3 . | . . . . . . . . Level 4 . | . . . . . . . . Level 5 . | . . . . . . . . High Security . | . . . . . . . . Max Security . | . . . . . . . . Squads Dispatched 5 | . 1 1 2 1 . . . Investigation 1 | . . . 1 . . . . Extermination 1 | . . . . 1 . . . Reinforcement 3 | . 1 1 1 . . . . Assault . | . . . . . . . . Garrison . | . . . . . . . . Intercept . | . . . . . . . . Construction Impeded . | . . . . . . . . Haulers Reinforced . | . . . . . . . . Stealth | -11 -10 -9 -8 -7 -7 -7 -7 --------- Run | Scr Mat Mat Mat Fac Low Low Zio Distress Signals 3 | . 1 1 1 . . . . Communications Jammed . | . . . . . . . . Distress Signals . | . . . . . . . . Times Spotted 113 | . 10 16 45 7 5 . 30 Peak Tracking Total 15 | . 2 3 5 2 4 . 15 Tactical Retreats 8 | . . . 1 . 2 . 5 Traps | -11 -10 -9 -8 -7 -7 -7 -7 ------- Run | Scr Mat Mat Mat Fac Low Low Zio Traps Triggered 2 | . . . . 2 . . . Indirectly . | . . . . . . . . Trap Hack Attempts . | . . . . . . . . Triggered . | . . . . . . . . Disarmed . | . . . . . . . . Reprogrammed . | . . . . . . . . Reused . | . . . . . . . . Traps Extracted . | . . . . . . . . Installed . | . . . . . . . . Triggered 1 | . . . . . . 1 . Machines | -11 -10 -9 -8 -7 -7 -7 -7 ---------- Run | Scr Mat Mat Mat Fac Low Low Zio Machines Disabled 4 | . . 1 2 1 . . . Max in Single Turn 1 | . . 1 1 1 . . . Garrison Access 1 | . . . . 1 . . . Machines Sabotaged . | . . . . . . . . Garrisons Compromised . | . . . . . . . . Overloaded Fab Kills . | . . . . . . . . Fab Network Shutdowns . | . . . . . . . . Hacking | -11 -10 -9 -8 -7 -7 -7 -7 --------- Run | Scr Mat Mat Mat Fac Low Low Zio Machines Accessed 24 | . 2 3 6 12 1 . . Terminals 18 | . 2 3 6 7 . . . Fabricators 3 | . . . . 3 . . . Repair Stations . | . . . . . . . . Recycling Units . | . . . . . . . . Scanalyzers 1 | . . . . 1 . . . Garrison Access 1 | . . . . 1 . . . Total Hacks 65 | . 6 7 19 32 1 . . Successful 36 | . 3 5 9 18 1 . . Failed 29 | . 3 2 10 14 . . . Catastrophic 5 | . . 1 1 3 . . . Database Lockouts . | . . . . . . . . Manual 34 | . 5 4 14 11 . . . Terminals 52 | . 6 7 19 20 . . . Fabricators 9 | . . . . 9 . . . Repair Stations . | . . . . . . . . Recycling Units . | . . . . . . . . Scanalyzers 2 | . . . . 2 . . . Garrison Access 1 | . . . . 1 . . . Terminal Hacks 15 | . 1 3 5 5 1 . . Part Schematic 3 | . . . 2 1 . . . Prototype ID Bank 3 | . 1 1 . 1 . . . Open Door 1 | . . . . . 1 . . Level Access Points 1 | . . . 1 . . . . Branch Access Points 1 | . . . . 1 . . . Unreport Threat 1 | . . 1 . . . . . Locate Traps 4 | . . 1 1 2 . . . Registered Components 1 | . . . 1 . . . . Fabricator Hacks 7 | . . . . 7 . . . Load Schematic 3 | . . . . 3 . . . Build 4 | . . . . 4 . . . Repair Station Hacks . | . . . . . . . . Recycling Unit Hacks . | . . . . . . . . Scanalyzer 2 | . . . . 2 . . . Insert Component 1 | . . . . 1 . . . Analyze 1 | . . . . 1 . . . Garrison Access Hacks 1 | . . . . 1 . . . Seal Access 1 | . . . . 1 . . . Unauthorized Hacks 32 | . 7 5 12 8 . . . Terminals 11 | . 2 2 4 3 . . . Track 5 | . 1 1 2 1 . . . Botnet 6 | . 1 1 2 2 . . . Fabricators . | . . . . . . . . Repair Stations . | . . . . . . . . Recycling Units . | . . . . . . . . Scanalyzers . | . . . . . . . . Garrison Access . | . . . . . . . . Data Cores Recovered . | . . . . . . . . Used . | . . . . . . . . Hacking Detections 19 | . 2 2 5 10 . . . Full Trace Events . | . . . . . . . . Feedback Events . | . . . . . . . . Feedback Blocked . | . . . . . . . . Robot Schematics Acquired . | . . . . . . . . Robots Built . | . . . . . . . . Matter . | . . . . . . . . Time . | . . . . . . . . Total Robot Build Rating . | . . . . . . . . Part Schematics Acquired 4 | . . . 2 2 . . . Parts Built 4 | . . . . 4 . . . Matter 522 | . . . . 522 . . . Time 217 | . . . . 217 . . . Total Part Build Rating 13 | . . . . 13 . . . Parts Repaired . | . . . . . . . . Time . | . . . . . . . . Parts Recycled . | . . . . . . . . Recycled Matter . | . . . . . . . . Retrieved Matter . | . . . . . . . . Retrieved Components . | . . . . . . . . Parts Scanalyzed 1 | . . . . 1 . . . Part Schematics Acquired 1 | . . . . 1 . . . Parts Damaged . | . . . . . . . . Bothacking | -11 -10 -9 -8 -7 -7 -7 -7 ------------ Run | Scr Mat Mat Mat Fac Low Low Zio Used RIF Installer . | . . . . . . . . Robots Hacked . | . . . . . . . . Non-combat . | . . . . . . . . Combat . | . . . . . . . . Robot Hacks Applied . | . . . . . . . . Relay Couplers Released . | . . . . . . . . Robots Rewired . | . . . . . . . . Allies Hacked . | . . . . . . . . Hacks Repelled . | . . . . . . . . Allies | -11 -10 -9 -8 -7 -7 -7 -7 -------- Run | Scr Mat Mat Mat Fac Low Low Zio Total Allies . | . . . . . . . . Largest Group . | . . . . . . . . Highest-Rated Group . | . . . . . . . . Highest-Rated Ally . | . . . . . . . . Total Orders . | . . . . . . . . Ally Attacks . | . . . . . . . . Total Damage . | . . . . . . . . Kills . | . . . . . . . . Allies Corrupted . | . . . . . . . . Allies Melted . | . . . . . . . . Intel | -11 -10 -9 -8 -7 -7 -7 -7 ------- Run | Scr Mat Mat Mat Fac Low Low Zio Robot Analysis Total . | . . . . . . . . Derelict Logs Recovered 5 | . . . . . 1 1 3 Drone Launches . | . . . . . . . . Drone Recoveries . | . . . . . . . . Exploration | -11 -10 -9 -8 -7 -7 -7 -7 ------------- Run | Scr Mat Mat Mat Fac Low Low Zio Turns Passed 5359 | 77 623 677 1842 1178 239 108 615 Spaces Moved 4727 | 41 282 328 827 1770 394 188 897 Core 5 | 4 . . . . . . 1 Treads 1478 | 35 282 328 827 6 . . . Legs . | . . . . . . . . Wheels 2 | 2 . . . . . . . Hover 3219 | . . . . 1764 394 188 873 Flight 23 | . . . . . . . 23 Fastest Speed 45 | 50 160 160 160 45 48 48 48 Average Speed 85 | 146 167 162 164 46 48 48 54 Slowest Speed 400 | 160 180 180 180 170 48 48 400 Overloaded Moves . | . . . . . . . . Propulsion Burnouts . | . . . . . . . . Robots Hopped . | . . . . . . . . Cave-ins Triggered . | . . . . . . . . Exploration Rate (%) 48 | 5 49 33 70 37 58 53 83 Regions Visited 7 Branch Regions 3 Pre-discovered Areas 2 | . . . . . . 1 1 Known Exits Taken 5 | . . 1 1 1 1 1 . Unknown Exits Taken 2 | 1 1 . . . . . . Scrap Searched 6 | . . . . . 1 2 3 Spaces Dug 27 | . . . 3 23 1 . . Terrain Destroyed 78 | . . 16 38 23 1 . . Melee 27 | . . . 3 23 1 . . Projectile . | . . . . . . . . AOE 51 | . . 16 35 . . . . Actions | -11 -10 -9 -8 -7 -7 -7 -7 --------- Run | Scr Mat Mat Mat Fac Low Low Zio Total 5736 | 55 377 433 1170 2087 435 205 974 Wait 490 | 3 23 38 163 196 26 18 23 Move 4720 | 40 281 327 826 1769 393 187 897 Hop . | . . . . . . . . Pick Up 80 | 4 21 11 22 20 1 . 1 Fast Attach 40 | 7 3 5 7 13 1 . 4 Attach 13 | . 1 . 3 6 . . 3 Detach 1 | . . 1 . . . . . Swap 60 | . 3 7 23 10 4 . 13 Drop 114 | 1 14 19 40 33 4 . 3 Fire 158 | . 31 25 83 2 . . 17 Melee 60 | . . . 3 38 6 . 13 Ram . | . . . . . . . . Kick . | . . . . . . . . Crush . | . . . . . . . . Escape Stasis . | . . . . . . . . Rewire . | . . . . . . . . Trap . | . . . . . . . . Miscellaneous . | . . . . . . . . Route ------- -11/Scrapyard -10/Materials (discovered 2 exits: *Mat / [*Min]) -9/Materials -8/Materials (discovered 3 exits: *Fac x3) -7/Factory (discovered 4 exits: *Fac x2 / *Low x2) -7/Lower Caves -7/Lower Caves -7/Zion History --------- Turn | Location | Event 41 | -11/Scrapyard | Discovered new exit (range 16) 78 | -11/Scrapyard | Entered Materials 312 | -10/Materials | Build established: Mutant 325 | -10/Materials | Discovered new exit (range 12) 603 | -10/Materials | Discovered new exit (range 16) 701 | -10/Materials | Entered another Materials area 701 | -9/Materials | Evolved 2 slots: Propulsion x1, Utility x1 1370 | -9/Materials | Discovered new exit (range 6) 1376 | -9/Materials | Identified exit to Materials 1378 | -9/Materials | Entered another Materials area 1378 | -8/Materials | Evolved 2 slots: Utility x2 1654 | -8/Materials | Discovered new exit (range 16) 1699 | -8/Materials | Identified exit to Factory 3220 | -8/Materials | Entered Factory 3220 | -7/Factory | Evolved 2 slots: Power x1, Propulsion x1 3406 | -7/Factory | Fabricated Imp. Flight Unit? 3522 | -7/Factory | Build established: Scavenger-Mutant 3637 | -7/Factory | Discovered new exit (range 9) 3643 | -7/Factory | Identified exit to Factory 3868 | -7/Factory | Fabricated Katana (x2) 3899 | -7/Factory | Build established: Mutant 4061 | -7/Factory | Identified exit to Lower Caves 4111 | -7/Factory | Discovered exit to Factory (range 15) 4159 | -7/Factory | Fabricated Gravmag Array? 4398 | -7/Factory | Entered Lower Caves 4451 | -7/Lower Caves | Spotted B-75 Beast 4566 | -7/Lower Caves | Encountered a Warlord checkpoint 4635 | -7/Lower Caves | Discovered new exit (range 6) 4637 | -7/Lower Caves | Identified exit to Lower Caves 4637 | -7/Lower Caves | Entered another Lower Caves area 4646 | -7/Lower Caves | Learned location of Zion (-7) 4651 | -7/Lower Caves | Encountered a Warlord checkpoint 4739 | -7/Lower Caves | Discovered new exit (range 8) 4741 | -7/Lower Caves | Identified exit to Zion 4745 | -7/Lower Caves | Entered Zion 4791 | -7/Zion | Found Prototype Hackware 4799 | -7/Zion | System corruption cleaned by Quarantine Array 4812 | -7/Zion | Learned Factory emergency access door positions 4968 | -7/Zion | Learned Factory terminal intel 5080 | -7/Zion | Attacked by Zionites 5275 | -7/Zion | Destroyed Imprinter 5276 | -7/Zion | Extracted access codes from Imprinter's data core 5285 | -7/Zion | System corruption reached 10% 5294 | -7/Zion | Core integrity fell below 50% 5321 | -7/Zion | Core integrity fell below 20% 5339 | -7/Zion | Lost 12 parts (3p5n2u2w) 5360 | -7/Zion | Destroyed by HR-OEZ(M) with Barrage Gun Last Messages --------------- 05297_ Mak. Hover Unit destroyed. 05297_ System corrupted by crushing effect (+3). 05298_ AT-414(z) pulls a Mak. Spear out of the Twisted Machinery. 05304_ Dropped Med. Storage Unit. 05307_ Acquired Mak. Sword. 05308_ Cesium-ion Thruster destroyed. 05308_ System corrupted by crushing effect (+5). 05308_ Knocked back. 05318_ SD-UOB(z) destroyed. 05322_ N2-C2I(z) destroyed. 05324_ System corrupted: Mak. Sword targeting data glitched. 05326_ Destroyed Mak. Leg. 05328_ System corrupted: Mak. Sword targeting data glitched. 05328_ Q3-0FG(z) destroyed. 05329_ HR-OEZ(M) IFF system glitched. 05329_ Cloak Generator disabled. 05347_ 5N-01J(z) destroyed. 05348_ System corrupted: Heat flow error (+172). 05353_ Connecting with Deep Containment System... 05360_ System corrupted: Mak. Sword targeting data glitched. Map ----- +----------------------------------------------------+ | ????????????????????????????????????????????????? | | ????????????????????????????????????????????????? | | ????????????????????????????????????????????????? | | ????????????????????????????????????????????????? | | ????????????????????????????????????????????????? | | ????????????????????????????????????????????????? | | ????????????????????????????????????????????????? | | ????????????????????????????????????????????????? | | ????????????????????????????????????????????????? | | ????????????????????????????????????????????????? | | ????????????????????????????????????????????????? | | ????????????????????????????????????????????????? | | ????????????????????????????????????????????????? | | ????????????????????????????????????????????????? | | ???????????????????????????????????""????######## | | ??????????????????????????????######""???#"#""""" | | ????????????????????????????##"""""""""?##""""""" | | ????????????????????????????#""""" ""###""" " | | ?????????????????????????##??#""" ""#""" " | | ??????????????????????###"#??#" """#" | | ??????????????????????#"""#??#" """"" | | ??????????????????????#"""####"""" | | ??????????????????????" X"""##""""" | | ??????????????????????# """""#""""" | | ?????????????????????## """"""""""" " | | ?????????????????????" @zzz z *% """ | | ?????????????????????" z M/ [//""" """ | | ?????????????????????# """""""""""""%"""" "## | | ????????????????????#"""""#"""#""" %% """ | | ????????????????????##""""#####""" ## ## """ | | ?????????????????????########"#"" # # """ | | ??????????????????????????##""""" " " ""# | | ??????????????????????????#""" """ """# | | ?????????????????????????##"" """ % """" | | ?????????????????????????#""" # # !/ | | ?????????????????????????###" " ## ## " | | ??????????????????????????#"" " " | | ??????????????????????????##" """" " | | ??????????????????????????#"" """" /!! " | | ??????????????????????????#"" "" !%%* " | | ??????????????????????????##" =%* # | | ???????????????????????????#"" /!!= # | | ??????????????????????????#"#" /%* " | | ??????????????????????????###"" " " " | | ???????????????????????????""""" """ " " | | ???????????????????????????""""" "#"" " | | ???????????????????????????#" "" "#"" | | ???????????????????????????""" """"""""" | | ???????????????????????????"#""" """"""""" | | ????????????????????????????#"""""##"" | +----------------------------------------------------+ Best States ------------- Heat Dissipation 48 Energy Generation 28 Energy Capacity 280 Matter Stores 300 Matter Capacity 300 Sight Range 16 Robot Scan Range 16 Terrain Scan Density 10 Additional Mass Support 6 Armor Coverage 225 Propulsion Shielding 33 Melee Speed Boost 20 Evasion (%) 65 Melee Accuracy 8 Recoil Reduction 3 Item Schematics ----------------- Katana | -8/Materials | Hacked Imp. Flight Unit | -8/Materials | Hacked Hacking Suite | -7/Factory | Scanalyzed Gravmag Array | -7/Factory | Hacked Robot Schematics ------------------ None Fabricated ------------ Imp. Flight Unit | x1 | -7/Factory Katana | x2 | -7/Factory Gravmag Array | x1 | -7/Factory Alien Tech Used ----------------- None Achievements -------------- None Challenges ------------ None Game ------ Seed TargetingBladeThrower Manual? 0 Play Time 00:54:16 Cumulative 687.2 hours Start 2020.02.03 @ 20:01:19 End 2020.02.03 @ 20:57:02 Sessions 1 Manual Loads 0 Difficulty Rogue Special Mode None Game No. 629 Rogue 589 Adventurer 40 Explorer 0 Win Type - Total 60 Types 44/0/14/2/0/0/0 Lore% 89 Gallery% 92 Achievement% 71 Wizard Run 0 Options --------- ASCII 0 Keyboard 0 Movement Numpad Keybinds 0 Fullscreen 0 Font 16/Terminus Map View 76x50 Tactical HUD 1 Map Filters NONE Filters NONE Steam 1 RUN: c9963c32-ed30-4702-aa5f-0529421029a5